Cogmind - Beta 11 X8 @@@ ROGUE MODE // 2022.01.09 @ 06:39:33 Player: maxwell Result: Self-destructed Performance ------------- Evolutions (1) 500 Regions Visited (5) 1000 Robots Destroyed (30) 150 Value Destroyed (473) 473 Prototype IDs (28) 560 Alien Tech Used (0) 0 Bonus (-1517) -1517 TOTAL SCORE: 1166 Bonus ------- Aligned with FarCom 300 Friendly Fire -1817 Cogmind --------- Core Integrity 103/400 Matter 232/300 Energy 250/250 System Corruption 0% Temperature Cool (0) Movement Treading (320) Ox2 Location -9/Exiles Parts ------- > --- POWER (1) -------- Ion Engine > --- PROPULSION (2) --- Light Treads > --- UTILITY (3) ------ High-capacity Storage Unit Advanced Targeting Computer > --- WEAPON (3) ------- Assault Rifle Grenade Launcher > --- INVENTORY (20) --- Light Ion Engine Light Treads Light Treads Improved Treads Large Storage Unit Small Matter Pod (24) Improved Terrain Scan Processor 0b10 Alert Chip Improved Power Shielding Heavy Assault Rifle AWS/Gauss XL Autogun Array Rocket Launcher Ripper Peak State ------------ > --- POWER ------------ Ion Engine > --- PROPULSION ------- Light Treads Light Treads > --- UTILITY ---------- High-capacity Storage Unit Advanced Targeting Computer Improved Light Armor Plating > --- WEAPON ----------- Assault Rifle Assault Rifle Heavy Assault Rifle > --- INVENTORY -------- Light Ion Engine Light Treads Light Treads Improved Treads Large Storage Unit Improved Terrain Scan Processor 0b10 Alert Chip Improved Power Shielding Heavy Assault Rifle Heavy Assault Rifle AWS/Gauss XL Autogun Array Grenade Launcher Rocket Launcher Ripper [Rating: 22] Favorites ----------- Power Light Ion Engine Engine Light Ion Engine Propulsion Light Treads Treads Light Treads Utility Large Storage Unit Device Improved Trap Extractor Storage Large Storage Unit Processor Advanced Targeting Computer Protection Improved Light Armor Plating Weapon Assault Rifle Ballistic Gun Assault Rifle Launcher Grenade Launcher Slashing Weapon Ripper Build | -11 -10 -10 -9 -9 -9 ------- Run | Scr Mat Min Mat Min Exi Slots Evolved 2 | . . . 2 . . Power . | . . . . . . Propulsion . | . . . . . . Utility 1 | . . . 1 . . Weapon 1 | . . . 1 . . Parts Attached 47 | 6 15 8 7 7 4 Power 3 | 1 . . 1 1 . Engine 3 | 1 . . 1 1 . Core . | . . . . . . Reactor . | . . . . . . Propulsion 3 | 2 . . . . 1 Treads 3 | 2 . . . . 1 Leg . | . . . . . . Wheel . | . . . . . . Hover . | . . . . . . Flight . | . . . . . . Utility 10 | 1 2 4 1 1 1 Device 2 | . . 2 . . . Storage 3 | 1 1 . . . 1 Processor 1 | . . . 1 . . Hackware . | . . . . . . Protection 4 | . 1 2 . 1 . Artifact . | . . . . . . Weapon 31 | 2 13 4 5 5 2 Energy Gun . | . . . . . . Energy Cannon . | . . . . . . Ballistic Gun 19 | 2 7 2 4 3 1 Ballistic Cannon . | . . . . . . Launcher 11 | . 6 2 . 2 1 Special Weapon . | . . . . . . Impact Weapon . | . . . . . . Slashing Weapon 1 | . . . 1 . . Piercing Weapon . | . . . . . . Special Melee Weapon . | . . . . . . Unidentified Prototypes . | . . . . . . Parts Lost 9 | . . . . 4 5 Power 1 | . . . . 1 . Propulsion 2 | . . . . 1 1 Utility 2 | . . . . 1 1 Weapon 4 | . . . . 1 3 Highest Loss Streak 5 | . . . . 3 5 Average Slot Usage (%) 97 | . 95 100 99 92 99 Engine 12 | . 14 14 11 10 11 Treads 23 | . 28 28 22 15 21 Storage 12 | . 14 14 11 11 11 Processor 5 | . . . 10 11 11 Protection 11 | . 9 13 11 10 10 Ballistic Gun 28 | . 26 23 29 30 32 Launcher 2 | . 1 4 2 2 . Naked Turns . | . . . . . . Heaviest Build 55 | 11 31 34 38 38 55 Greatest Support 40 | 40 40 40 40 40 40 Greatest Overweight (x) 2 | 2 . . . 1 1 Average Overweight (x) . | . . . . . . Largest Inventory Capacity 20 | 8 15 15 15 15 20 Average Capacity 15 | 7 14 15 15 15 18 Most Carried 20 | 2 14 15 15 15 20 Average Carried 12 | . 7 14 14 13 15 Final Capacity 20 | 8 15 15 15 15 20 Final Carried 18 | 2 14 15 15 12 18 Class Distribution -------------------- 57% | Mutant 42% | Gunner Dominant Class ---------------- Mutant | -10/Materials Mutant | -10/Mines Gunner | -9/Materials Gunner | -9/Mines Gunner | -9/Exiles Resources | -11 -10 -10 -9 -9 -9 ----------- Run | Scr Mat Min Mat Min Exi Matter Collected 1251 | 200 277 237 99 412 26 Remotely . | . . . . . . Salvage Created 803 | . 365 170 69 189 10 Parts 44 | . 28 9 3 4 . Haulers Intercepted 3 | . 2 . 1 . . Recyclers Shooed . | . . . . . . Parts Field Recycled . | . . . . . . Retrieved Matter . | . . . . . . Parts Self-Destructed . | . . . . . . Prevented . | . . . . . . Kills | -11 -10 -10 -9 -9 -9 ------- Run | Scr Mat Min Mat Min Exi Combat Hostiles Destroyed 23 | . 8 5 . 8 2 Guns 6 | . 2 2 . 2 . AOE 17 | . 6 3 . 6 2 Classes Destroyed 9 | . 7 . . 2 . Worker 1 | . 1 . . . . Builder 1 | . 1 . . . . Hauler 3 | . 2 . 1 . . Recycler 2 | . 2 . . . . Watcher 4 | . 3 . 1 . . Swarmer 11 | . 6 5 . . . Grunt 4 | . 2 . . 2 . Demolisher 1 | . . . . 1 . Assembled 7 | . . . . 5 2 Thug 2 | . . 2 . . . Best Kill Streak 5 | . 3 3 1 5 2 Combat Bots Only 5 | . 3 3 . 5 2 Max Kills in Single Turn 3 | . 2 2 1 3 2 Gunslinging . | . . . . . . Exploded 3 | . 2 2 . 3 2 Melee . | . . . . . . Uniques/NPCs Destroyed 1 | . . . . 1 . YI-UF0 (-9/Mines) Combat | -11 -10 -10 -9 -9 -9 -------- Run | Scr Mat Min Mat Min Exi Damage Taken 1864 | . 194 110 15 776 769 Core 312 | . 7 8 15 160 122 Absorbed by Shields . | . . . . . . Core Remaining (%) 97 | 100 . 94 . . . Volleys Fired 92 | . 37 26 3 18 8 Largest 3 | . 2 2 3 3 3 Hottest 69 | . 40 40 69 69 66 Shots Fired 180 | . 58 44 8 48 22 Gun 156 | . 46 40 8 41 21 Cannon . | . . . . . . Launcher 24 | . 12 4 . 7 1 Special . | . . . . . . Kinetic 156 | . 46 40 8 41 21 Thermal . | . . . . . . Explosive 24 | . 12 4 . 7 1 Electromagnetic . | . . . . . . Robot Hit Streak 6 | . 5 5 3 6 6 Robot Miss Streak 4 | . 4 3 1 1 2 Penetration Max . | . . . . . . Secondary Targets . | . . . . . . Shots Hit Robots 105 | . 29 24 4 31 17 Core Hits 66 | . 25 13 2 19 7 Critical Kills . | . . . . . . Critical Parts Destroyed 1 | . . . 1 . . Critical Strikes 1 | . . . 1 . . Destroy 1 | . . . 1 . . Melee Attacks 2 | . . . 2 . . Impact . | . . . . . . Slashing 2 | . . . 2 . . Piercing . | . . . . . . Sneak Attacks . | . . . . . . Combat Hostiles . | . . . . . . Follow-up Attacks . | . . . . . . Damage Inflicted 2798 | . 996 592 77 823 310 Guns 1352 | . 323 353 77 430 169 Cannons . | . . . . . . Explosions 1424 | . 669 221 . 393 141 Melee . | . . . . . . Ramming 22 | . 4 18 . . . Kinetic 1352 | . 323 353 77 430 169 Thermal . | . . . . . . Explosive 1424 | . 669 221 . 393 141 Electromagnetic . | . . . . . . Impact . | . . . . . . Slashing . | . . . . . . Piercing . | . . . . . . Highest Corruption . | . . . . . . Average Corruption . | . . . . . . Corruption Purged . | . . . . . . Overload Shots . | . . . . . . Overflow Damage 59 | . . 26 . 8 25 Projectiles . | . . . . . . Explosions 59 | . . 26 . 8 25 Melee . | . . . . . . Knockbacks . | . . . . . . Impact . | . . . . . . Kinetic . | . . . . . . Secondary . | . . . . . . Self-Inflicted Damage 113 | . 22 . . 52 39 Shots 4 | . 1 . . 2 1 Rammed 5 | . 1 4 . . . Targets Rammed 5 | . 1 4 . . . Kicked . | . . . . . . Crushed . | . . . . . . Highest Temperature 9 | . 4 . 6 9 . Average Temperature 3 | . 2 . 3 3 . Received Heat Transfer 93 | . 33 . 9 51 . Siege Activations . | . . . . . . Robots Corrupted . | . . . . . . Combat Hostiles . | . . . . . . Parts Fried . | . . . . . . Impact Corruptions . | . . . . . . Robots Melted . | . . . . . . Combat Hostiles . | . . . . . . Parts Melted . | . . . . . . Heat Transferred . | . . . . . . Parts Sabotaged . | . . . . . . Parts Stolen . | . . . . . . Parts Stripped . | . . . . . . Power Chain Reactions . | . . . . . . Missiles Intercepted . | . . . . . . Alert | -11 -10 -10 -9 -9 -9 ------- Run | Scr Mat Min Mat Min Exi Peak Influence 203 | . 203 85 65 80 . Initial 42 | . . 42 . 25 . Average 54 | . 70 48 38 47 . Maximum Alert Level 1 | . 1 . . . . Low Security (%) 98 | 100 96 100 100 100 . Level 1 1 | . 3 . . . . Level 2 . | . . . . . . Level 3 . | . . . . . . Level 4 . | . . . . . . Level 5 . | . . . . . . High Security . | . . . . . . Max Security . | . . . . . . Squads Dispatched . | . . . . . . Investigation . | . . . . . . Extermination . | . . . . . . Reinforcement . | . . . . . . Assault . | . . . . . . Garrison . | . . . . . . Intercept . | . . . . . . Construction Impeded . | . . . . . . Haulers Reinforced . | . . . . . . Active Scanning Responses . | . . . . . . Cargo Convoy Interrupts . | . . . . . . Stealth | -11 -10 -10 -9 -9 -9 --------- Run | Scr Mat Min Mat Min Exi Distress Signals 1 | . . . . 1 . Communications Jammed . | . . . . . . Distress Signals . | . . . . . . Times Spotted 51 | . 15 4 3 9 20 Peak Tracking Total 14 | . 3 2 3 4 14 Tactical Retreats 2 | . . . . . 2 Traps | -11 -10 -10 -9 -9 -9 ------- Run | Scr Mat Min Mat Min Exi Traps Triggered 1 | . . 1 . . . Indirectly . | . . . . . . Trap Hack Attempts . | . . . . . . Triggered . | . . . . . . Disarmed . | . . . . . . Reprogrammed . | . . . . . . Reused . | . . . . . . Traps Extracted . | . . . . . . Installed . | . . . . . . Triggered . | . . . . . . Machines | -11 -10 -10 -9 -9 -9 ---------- Run | Scr Mat Min Mat Min Exi Machines Disabled 7 | . 3 1 . 2 1 Max in Single Turn 2 | . 1 1 . 2 . Machines Sabotaged . | . . . . . . Garrisons Compromised . | . . . . . . Overloaded Fab Kills . | . . . . . . Hacking | -11 -10 -10 -9 -9 -9 --------- Run | Scr Mat Min Mat Min Exi Machines Accessed 13 | . 8 1 2 . 2 Terminals 9 | . 7 . 2 . . Fabricators . | . . . . . . Repair Stations . | . . . . . . Recycling Units 1 | . 1 . . . . Scanalyzers . | . . . . . . Garrison Access . | . . . . . . Total Hacks 41 | . 23 1 15 . 2 Successful 25 | . 14 1 8 . 2 Failed 15 | . 8 . 7 . . Catastrophic . | . . . . . . Database Lockouts 1 | . 1 . . . . Manual 33 | . 16 . 16 . 1 Terminals 36 | . 21 . 15 . . Fabricators . | . . . . . . Repair Stations . | . . . . . . Recycling Units 2 | . 2 . . . . Scanalyzers . | . . . . . . Garrison Access . | . . . . . . Terminal Hacks 16 | . 8 1 5 . 2 Record 2 | . 1 . . . 1 Part Schematic 1 | . . . 1 . . Robot Analysis 3 | . 3 . . . . Prototype ID Bank 3 | . 1 . 2 . . Open Door 1 | . . 1 . . . Branch Access Points 2 | . 1 . 1 . . Terminal Index 2 | . 1 . 1 . . Zone Layout 1 | . 1 . . . . EX-Prototype ID Bank 1 | . . . . . 1 Fabricator Hacks . | . . . . . . Repair Station Hacks . | . . . . . . Recycling Unit Hacks 1 | . 1 . . . . Retrieve Components 1 | . 1 . . . . Scanalyzer . | . . . . . . Garrison Access Hacks . | . . . . . . Unauthorized Hacks 8 | . 5 . 3 . . Terminals 8 | . 5 . 3 . . Track 1 | . . . 1 . . Assimilate 3 | . 3 . . . . Botnet 2 | . 1 . 1 . . Operators 2 | . 1 . 1 . . Fabricators . | . . . . . . Repair Stations . | . . . . . . Recycling Units . | . . . . . . Scanalyzers . | . . . . . . Garrison Access . | . . . . . . Data Cores Recovered . | . . . . . . Used . | . . . . . . Hacking Detections 9 | . 7 . 2 . . Full Trace Events . | . . . . . . Feedback Events . | . . . . . . Feedback Blocked . | . . . . . . Robot Schematics Acquired . | . . . . . . Robots Built . | . . . . . . Authchips . | . . . . . . Time . | . . . . . . Total Robot Build Rating . | . . . . . . Part Schematics Acquired 1 | . . . 1 . . Parts Built . | . . . . . . Authchips . | . . . . . . Time . | . . . . . . Total Part Build Rating . | . . . . . . Parts Repaired . | . . . . . . Time . | . . . . . . Parts Recycled . | . . . . . . Recycled Matter . | . . . . . . Retrieved Matter . | . . . . . . Retrieved Components 10 | . 10 . . . . Parts Scanalyzed . | . . . . . . Part Schematics Acquired . | . . . . . . Parts Damaged . | . . . . . . Bothacking | -11 -10 -10 -9 -9 -9 ------------ Run | Scr Mat Min Mat Min Exi Used RIF Installer . | . . . . . . Robots Hacked . | . . . . . . Non-combat . | . . . . . . Combat . | . . . . . . Robot Hacks Applied . | . . . . . . Relay Couplers Released . | . . . . . . Fabnet Peak Effective % . | . . . . . . Robots Rewired . | . . . . . . Allies Hacked . | . . . . . . Hacks Repelled . | . . . . . . Allies | -11 -10 -10 -9 -9 -9 -------- Run | Scr Mat Min Mat Min Exi Total Allies 6 | . 2 1 . 3 . Largest Group 3 | . 2 3 2 3 3 Highest-Rated Group 51 | . 20 51 20 40 40 Highest-Rated Ally 31 | . 10 31 10 16 16 Total Orders 13 | . . 4 2 . 7 STAY 8 | . . 2 1 . 5 FOLLOW 5 | . . 2 1 . 2 Ally Attacks 17 | . . . . . 17 Total Damage 92 | . . . . . 92 Kills . | . . . . . . Allies Corrupted . | . . . . . . Allies Melted . | . . . . . . Intel | -11 -10 -10 -9 -9 -9 ------- Run | Scr Mat Min Mat Min Exi Robot Analysis Total 3 | . 3 . . . . Derelict Logs Recovered 2 | . . 1 . 1 . Drone Launches . | . . . . . . Drone Recoveries . | . . . . . . Exploration | -11 -10 -10 -9 -9 -9 ------------- Run | Scr Mat Min Mat Min Exi Turns Passed 4590 | 61 1198 1249 195 848 1039 Spaces Moved 2333 | 39 636 713 99 384 462 Core 12 | 12 . . . . . Treads 2321 | 27 636 713 99 384 462 Legs . | . . . . . . Wheels . | . . . . . . Hover . | . . . . . . Flight . | . . . . . . Fastest Speed 50 | 50 160 160 160 160 160 Average Speed 177 | 131 160 160 160 203 216 Slowest Speed 240 | 160 160 160 160 240 240 Overloaded Moves . | . . . . . . Propulsion Burnouts . | . . . . . . Robots Hopped . | . . . . . . Cave-ins Triggered . | . . . . . . Exploration Rate (%) 57 | 4 93 99 14 66 68 Regions Visited 5 Branch Regions 3 Pre-discovered Areas 3 | . . 1 . 1 1 Known Exits Taken 2 | . 1 . 1 . . Unknown Exits Taken 3 | 1 . 1 . 1 . Scrap Searched 2 | . . 1 . 1 . Spaces Dug 18 | . 17 . 1 . . Terrain Destroyed 145 | . 77 21 1 46 . Melee 1 | . . . 1 . . Projectile . | . . . . . . AOE 144 | . 77 21 . 46 . Terrain Rammed . | . . . . . . Walls Destroyed . | . . . . . . Machines Disabled . | . . . . . . Actions | -11 -10 -10 -9 -9 -9 --------- Run | Scr Mat Min Mat Min Exi Total 2592 | 46 751 777 125 411 482 Wait 75 | . 49 8 12 3 3 Move 2328 | 38 635 712 98 383 462 Hop . | . . . . . . Pick Up 32 | 2 13 10 2 . 5 Fast Attach 7 | 6 1 . . . . Attach 12 | . 1 3 2 3 3 Detach . | . . . . . . Swap 28 | . 13 5 5 4 1 Drop 11 | . 1 9 1 . . Fire 92 | . 37 26 3 18 8 Melee 2 | . . . 2 . . Ram . | . . . . . . Kick . | . . . . . . Crush 5 | . 1 4 . . . Escape Stasis . | . . . . . . Rewire . | . . . . . . Trap . | . . . . . . Miscellaneous . | . . . . . . Route ------- -11/Scrapyard -10/Materials (discovered 5 exits: *Mat x3 / *Min x2) -10/Mines (discovered 2 exits: *Mat x2) -9/Materials (discovered 2 exits: *Min x2) -9/Mines -9/Exiles (discovered 1 exit: [*Min]) History --------- Turn | Location | Event 29 | -11/Scrapyard | Discovered new exit (range 15) 62 | -11/Scrapyard | Entered Materials 308 | -10/Materials | Build established: Mutant 364 | -10/Materials | Discovered new exit (range 14) 407 | -10/Materials | Discovered new exit (range 10) 470 | -10/Materials | Discovered new exit (range 13) 624 | -10/Materials | Discovered new exit (range 3) 724 | -10/Materials | Central database locked down 1019 | -10/Materials | Discovered new exit (range 3) 1037 | -10/Materials | Identified exit to Mines 1260 | -10/Materials | Entered Mines 1260 | -10/Mines | Accompanied by 2 allies 1292 | -10/Mines | Met a Derelict bent on vengeance 1300 | -10/Mines | Discovered new exit (range 6) 1321 | -10/Mines | Received a Mining Laser from a helpful Derelict 1471 | -10/Mines | A weapon hastily lodged in a ceiling crevice suddenly fell to the ground 1747 | -10/Mines | Received a Rocket Launcher from a helpful Derelict 1781 | -10/Mines | Learned location of Mines (-8) 1823 | -10/Mines | Met a Derelict who couldn't figure out how to use a Trap Extractor 1967 | -10/Mines | Discovered new exit (range 8) 2509 | -10/Mines | Entered Materials 2509 | -9/Materials | Accompanied by 2 allies 2509 | -9/Materials | Evolved 2 slots: Utility x1, Weapon x1 2547 | -9/Materials | Discovered new exit (range 15) 2648 | -9/Materials | Identified exit to Mines 2704 | -9/Materials | Entered Mines 2704 | -9/Mines | Accompanied by 2 allies 2835 | -9/Mines | Build established: Gunner 2885 | -9/Mines | YI-UF0 nonchalantly dropped a Grenade Launcher on the ground 2915 | -9/Mines | Destroyed YI-UF0 2956 | -9/Mines | Assembled infested the area 3029 | -9/Mines | Lost 3 parts (1p1u1w) 3057 | -9/Mines | Found a hidden stash of uninstalled traps 3197 | -9/Mines | Assisted by bots powering up and referring to "LRC-V3" 3343 | -9/Mines | Learned location of Zion (-6) 3542 | -9/Mines | Discovered new exit (range 5) 3552 | -9/Mines | Entered Exiles 3552 | -9/Exiles | Accompanied by 3 allies 3577 | -9/Exiles | Discovered new exit (range 15) 3597 | -9/Exiles | Met 8R-AWN 3619 | -9/Exiles | Met EX-HEX 3688 | -9/Exiles | Met EX-DEC 3960 | -9/Exiles | Met EX-BIN 3994 | -9/Exiles | Aligned with FarCom system 3996 | -9/Exiles | Given EX-Vault access code 4051 | -9/Exiles | Opened EX-Vault 4070 | -9/Exiles | Found 0b10 Alert Chip 4076 | -9/Exiles | Found AWS/Gauss 4080 | -9/Exiles | Found XL Autogun Array 4131 | -9/Exiles | Warned to stay clear of 0b10 Research branches 4566 | -9/Exiles | Attacked by the Exiles 4570 | -9/Exiles | Core integrity fell below 50% 4591 | -9/Exiles | Self-destructed Last Messages --------------- 04263_ Extracted 26 matter. 04265_ Acquired Sml. Matter Pod. 04566_ EXILES: Hostile robot within lab perimeter. Defensive protocols time, folks! 04568_ EX-DEC: "Let's see what this bad boy can do..." 04568_ EX-DEC deploys DAS Turret. 04568_ Machine disabled. 04575_ EX-BIN: "I just want to science!" 04575_ Lgt. Treads destroyed. 04579_ Imp. Light Armor Plating destroyed. 04582_ Trooper 2b destroyed. 04583_ Assault Rifle destroyed. 04585_ Mercenary 2a destroyed. 04585_ Trooper 2a destroyed. 04585_ Hvy. Assault Rifle destroyed. 04586_ Machine disabled. 04589_ as-60181 destroyed. 04589_ Hvy. Assault Rifle destroyed. 04589_ Destroyed Hvy. Assault Rifle. 04589_ as-59914 destroyed. Map ----- +----------------------------------------------------+ | ????????????????????????????????????## ###"" " | | ????#######?????????????????????????#" " | | ????#!!! "#?????????????????????????#" | | ????# "#?????????????????????????#" | | ????# "#?????????????????????????#" | | ???## ""#????????????#####????????#" | | ####" ""#???????????? """#???????#" | | ##" ""?????????????" """#???????## | | #"" #?????????????"" #????????# | | #?????????????"" #????????#" "X" | | ##????????????"" "#????????#" """ | | "#???????????? ""?????????#" """""" | | ###???????????" "?????????##" ####### | | ##??????????# #????????##"" #?????? | | "###"" ######???### ###?######"" #?????? | | "#?##" """#####X# #"###""""""" ##????? | | ##??#" """""" " "" ##???# | | ##???#"# "" " " " ##### | | ?????#### " " | | ????????### | | ??????????### | | ????????????## | | ?????????????## | | ??????????????##" | | ???????????????#""" """""" | | ??????????????##" @% ######""" | | ??????????????#"" aa ""##????#####""" | | ??????????????#""" a """##?????????##""" | | ?????????????#""" % ""##???????????#"""" | | ?????????????#""" "#???????????##"" | | ?????????????#"" a########??####"""" | | ?????????????#"" t * ## ####""" | | ?????????????#"" =% % a """" | | ?????????????##"" =%! | | ??????????????#"""" | | ??????????????## | | ???????????????#" =% " "" | | ???????????????#"""" ""## ##""" " " | | ???????????????#"" ""#### ######""" | | ???????????????#" """"##??# #????###" | | ???????????????#""" """#??## ####???## | | ???????????????## ""##??#! "!#????? | | ????????????????#"" """##???#" !#????? | | ????????????????##""" ##????#" "#????? | | ?????????????????##"""" ##?????#!!"" "#????? | | ???????????????????## #??????########????? | | ?????????????????????#### ##??????????????????? | | ????????????????????????## ????????????????????? | | ?????????????????????????# ????????????????????? | | ?????????????????????????# ????????????????????? | +----------------------------------------------------+ Best States ------------- Heat Dissipation 28 Energy Generation 12 Energy Capacity 265 Matter Stores 300 Matter Capacity 300 Sight Range 16 Terrain Scan Density 10 Armor Coverage 150 Power Shielding 33 Propulsion Shielding 66 Evasion (%) 40 Targeting Accuracy 8 Recoil Reduction 2 Item Schematics ----------------- Huge Storage Unit | -9/Materials | Hacked Robot Schematics ------------------ None Fabricated ------------ Nothing Alien Tech Used ----------------- None Achievements -------------- None Challenges ------------ None Game ------ Seed GyrokineticPotentialHumpback Manual? 0 Play Time 00:19:37 Cumulative 143.0 hours Start 2022.01.09 @ 06:22:16 End 2022.01.09 @ 06:39:33 Sessions 1 Manual Loads 0 Difficulty Rogue Special Mode None Game No. 247 Rogue 230 Adventurer 4 Explorer 13 Win Type - Total 8 Types 6/0/0/2/0/0/0/0/0 Lore% 64 Gallery% 83 Achievement% 68 Wizard Run 0 Options --------- ASCII 0 Keyboard 1 Movement Numpad Keybinds 0 Fullscreen 1 Font 18/SmallcapsGlow Map View 76x50 Tactical HUD 1 Map Filters NONE Filters NONE Steam 1 RUN: 66fd1616-688a-4628-a559-de89314e248f